[Event "Finnish Women Championship 2022"]
[Site "Helsinki"]
[Date "2022.04.18"]
[Round "4.2"]
[White "Lehtinen, Helja"]
[Black "Dannenberg, Alia"]
[Result "1-0"]
[ECO "D85"]
[WhiteElo "1907"]
[BlackElo "1896"]
[Annotator "TA"]
[PlyCount "67"]
[EventDate "2022.04.15"]
[EventType "tourn"]
[EventCountry "FIN"]
[SourceTitle "playchess.com"]
[Source "ChessBase"]
[SourceQuality "1"]
[TimeControl "40/5400+30:1800+30"]

{[%evp 13,66,20,41,43,90,91,140,133,134,150,175,174,183,188,225,158,293,304,367,347,473,453,468,454,513,502,528,528,529,526,520,529,522,530,528,529,510,506,518,422,422,422,417,420,400,384,333,333,6175,757,753,753,753,751,29999]} 1. d4 {[%emt 0:00:06]} Nf6 {[%emt 0:00:02]} 2. c4 {[%emt 0:00:09]} g6 {[%emt 0:00:01]} 3. Nc3 {[%emt 0:00:06]} d5 {[%emt 0:00:13]} 4. cxd5 {[%emt 0:01:11]} Nxd5 {[%emt 0:00:54]} 5. Bd2 {[%emt 0:00:43]} Bg7 {[%emt 0:00:37]} 6. e4 {[%emt 0:00:58]} Nb6 {[%emt 0:00:35]} 7. Be3 {[%emt 0:00:59]} Nc6 {[%emt 0:05:41][%cal Rc6d4]} 8. d5 {[%emt 0:06:24] 8.Bb5 is more advanced technology. D85: Exchange Grünfeld: Unusual White 7th moves and lines with 7 Nf3.} Na5 {[%emt 0:04:00]} (8... Ne5 $14 {might be stronger.}) 9. Bd4 $16 {[%emt 0:04:15]} f6 {[%emt 0:26:45]} (9... Bf6 $142) 10. Bxb6 {[%emt 0:05:23] &Bianco is more active. White is clearly better.} axb6 {[%emt 0:07:53]} 11. b4 {[%emt 0:02:52]} f5 {[%emt 0:00:20]} 12. Rc1 {[%emt 0:01:04]} fxe4 {[%emt 0:00:43][%cal Oe7e6]} 13. bxa5 {[%emt 0:02:50] [#]} O-O $146 {[%emt 0:03:49]} ({Predecessor:} 13... Rxa5 14. Bc4 Bf5 15. Nge2 Qd6 16. O-O Bh6 17. Nb5 Qc5 18. Nxc7+ Kf8 19. Ne6+ Bxe6 20. dxe6 Bxc1 21. Qxc1 {1-0 (40) Hausrath,D (2390)-Ladanyi,T (2160) Budapest 1996}) 14. Nxe4 {[%emt 0:14:20] Black must now prevent Qb3.} Rf4 {[%emt 0:01:48]} (14... Bf5 $16) 15. Bd3 $18 {[%emt 0:16:16]} Bh6 {[%emt 0:12:13]} 16. Ne2 {[%emt 0:05:42]} Rg4 {[%emt 0:02:02]} 17. O-O {[%emt 0:01:50]} Bxc1 {[%emt 0:03:44]} 18. Qxc1 {[%emt 0:00:45]} ({Not} 18. Nxc1 Qxd5 19. axb6 cxb6 $18) 18... Bf5 {[%emt 0:01:04]} 19. f3 {[%emt 0:01:39]} Bxe4 {[%emt 0:00:56]} 20. Bxe4 {[%emt 0:03:49]} Rh4 {[%emt 0:00:25]} 21. g3 {[%emt 0:04:20]} Rh5 {[%emt 0:02:06]} 22. Nf4 {[%emt 0:03:10]} Re5 {[%emt 0:01:23]} 23. axb6 {[%emt 0:04:01]} cxb6 {[%emt 0:00:42]} 24. Qb2 {[%emt 0:00:35]} Qd6 {[%emt 0:01:09]} 25. Ne6 {[%emt 0:00:45]} Rc8 {[%emt 0:04:26]} 26. Rc1 {[%emt 0:02:32]} Rxc1+ {[%emt 0:10:50]} 27. Qxc1 {[%emt 0:00:10] [#] Intending Qc8+ and mate.} Rxd5 {[%emt 0:00:59]} 28. Bxd5 {[%emt 0:05:52]} ({Less strong is} 28. Qc8+ Kf7 $18) 28... Qxd5 {[%emt 0:00:05]} 29. Qe3 {[%emt 0:05:09]} ({Weaker is} 29. Qc8+ Kf7 30. Nf4 Qc5+ 31. Qxc5 bxc5 $18) 29... Qxa2 {[%emt 0:04:00]} 30. Qe5 {[%emt 0:00:21][%csl Ge6][%cal Re5g7] Against Qd5} Kf7 {[%emt 0:01:00] [#]} (30... Qb1+ 31. Kf2 Qc2+ 32. Ke3 Qc1+ 33. Ke4 Qc2+ 34. Kf4 Qa4+ 35. Qe4 Qd7) 31. Ng5+ {[%emt 0:00:09]} (31. Qg7+ $142 Kxe6 32. Qg8+ Kd6 33. Qxa2) 31... Ke8 {[%emt 0:03:07]} 32. Qb8+ {[%emt 0:00:23]} Kd7 {[%emt 0:00:02]} 33. Qxb7+ {[%emt 0:00:09]} Ke8 {[%emt 0:01:54]} 34. Qc8# {[%emt 0:08:33] Black got outplayed after the opening.  Weighted Error Value: White=0.13 (very precise) /Black=0.61} 1-0

[Event "Finnish Women Championship 2022"]
[Site "Helsinki"]
[Date "2022.04.18"]
[Round "4.3"]
[White "Sippola, Sara-Olivia"]
[Black "Rinne, Heini"]
[Result "1-0"]
[ECO "B00"]
[WhiteElo "1531"]
[BlackElo "1847"]
[Annotator "NA RC"]
[PlyCount "123"]
[EventDate "2022.04.15"]
[EventType "tourn"]
[EventCountry "FIN"]
[SourceTitle "playchess.com"]
[Source "ChessBase"]
[SourceQuality "1"]
[TimeControl "40/5400+30:1800+30"]

1. e4 {[%emt 0:00:03]} Nc6 {[%emt 0:06:24]} 2. Nf3 {[%emt 0:01:09]} d6 {[%emt 0:02:25]} 3. d4 {[%emt 0:00:22]} Nf6 {[%emt 0:08:41]} 4. Nc3 {[%emt 0:02:20]} g6 {[%emt 0:06:08]} 5. Bg5 {[%emt 0:05:29]} Bg7 {[%emt 0:00:49]} 6. Qd2 {[%emt 0:00:16]} h6 {[%emt 0:03:17]} 7. Bf4 {[%emt 0:02:08]} ({Better is} 7. Bh4 $14) 7... Bg4 {[%emt 0:08:56]} 8. d5 {[%emt 0:08:53]} Nb8 {[%emt 0:17:57]} 9. Nd4 {[%emt 0:00:47]} c5 {[%emt 0:02:41] [#]} 10. dxc6 {[%emt 0:07:55]} ({Don't play} 10. Bb5+ $6 Bd7 11. Bxd7+ Nbxd7 $11) (10. Nb3 $1 $16) 10... Nxc6 {[%emt 0:00:35]} 11. Nxc6 {[%emt 0:08:04]} bxc6 {[%emt 0:00:06]} 12. f3 {[%emt 0:00:47]} Be6 {[%emt 0:02:51]} 13. e5 {[%emt 0:04:30] [#]} Nh5 $1 {[%emt 0:03:59]} 14. exd6 {[%emt 0:00:23]} Nxf4 {[%emt 0:00:11]} 15. d7+ {[%emt 0:03:51]} Qxd7 {[%emt 0:01:59]} 16. Qxf4 {[%emt 0:00:07]} Qd6 {[%emt 0:08:52]} 17. Qxd6 {[%emt 0:07:51]} exd6 {[%emt 0:01:44]} 18. O-O-O {[%emt 0:04:13]} Bxc3 {[%emt 0:00:55]} 19. bxc3 {[%emt 0:00:02]} Ke7 {[%emt 0:04:25]} 20. Ba6 {[%emt 0:02:12]} Rab8 {[%emt 0:00:19]} 21. Rhe1 {[%emt 0:01:46]} Kd7 {[%emt 0:01:45]} (21... Rb6 $5 {[%cal Rb6a6]} 22. Bd3 Rhb8 $15) 22. a4 {[%emt 0:01:02]} Kc7 {[%emt 0:01:26]} 23. a5 {[%emt 0:02:14]} Rhd8 {[%emt 0:03:12]} 24. g4 {[%emt 0:08:54]} d5 {[%emt 0:01:47]} 25. Re3 {[%emt 0:07:40]} c5 {[%emt 0:00:44]} 26. Be2 {[%emt 0:02:02]} g5 {[%emt 0:04:40]} (26... c4 $5 {[%cal Rb8b5]}) 27. h4 {[%emt 0:00:22]} (27. f4 $11 {feels stronger.}) 27... Kd6 {[%emt 0:04:41]} 28. Bd3 {[%emt 0:04:47]} Kc6 {[%emt 0:01:03]} (28... Rh8 $15) 29. Re5 {[%emt 0:00:55]} c4 {[%emt 0:00:37]} 30. Bf5 {[%emt 0:00:31]} gxh4 {[%emt 0:01:28]} 31. Rh1 {[%emt 0:02:33]} Kd6 {[%emt 0:00:17]} 32. f4 {[%emt 0:00:35]} Rb5 {[%emt 0:00:52]} 33. Rxh4 {[%emt 0:00:42]} Bxf5 {[%emt 0:00:28]} (33... Rh8 $11) 34. Rxf5 {[%emt 0:00:30]} Ke7 {[%emt 0:00:30]} 35. Re5+ {[%emt 0:01:11]} Kd7 {[%emt 0:00:25]} 36. a6 {[%emt 0:01:48]} (36. Rxh6 $18 Rxa5 37. Kd2) 36... Rg8 {[%emt 0:00:37]} 37. Rxh6 {[%emt 0:04:07]} Rxg4 {[%emt 0:00:07]} 38. Rf6 {[%emt 0:00:39]} Rg7 {[%emt 0:00:18]} 39. Kd2 {[%emt 0:01:02]} Kc7 {[%emt 0:00:57]} 40. Re7+ {[%emt 0:01:37]} Kb8 {[%emt 0:00:26]} 41. Rd6 {[%emt 0:32:06]} Rg8 {[%emt 0:07:07]} 42. Rxf7 {[%emt 0:00:00]} Rb6 {[%emt 0:00:58]} 43. Rxb6+ {[%emt 0:00:00]} axb6 {[%emt 0:00:06]} 44. Rb7+ {[%emt 0:00:00]} Ka8 {[%emt 0:00:12]} 45. Rxb6 {[%emt 0:00:00]} Rg2+ {[%emt 0:07:42]} 46. Kc1 {[%emt 0:00:00]} Rg3 {[%emt 0:02:24]} 47. f5 {[%emt 0:00:00]} Ka7 {[%emt 0:04:37]} 48. Rd6 {[%emt 0:00:00]} Rxc3 {[%emt 0:02:21]} 49. Kd2 {[%emt 0:00:00]} Rf3 {[%emt 0:04:29]} 50. Rxd5 {[%emt 0:00:00]} Kxa6 {[%emt 0:00:50]} 51. Ke2 {[%emt 0:00:00]} Rf4 {[%emt 0:02:21]} 52. Ke3 {[%emt 0:00:00]} Rf1 {[%emt 0:00:08]} 53. Ke4 {[%emt 0:00:00]} Kb6 {[%emt 0:00:41]} 54. Rd6+ {[%emt 0:00:49]} Kc5 {[%emt 0:00:09]} 55. Rd2 {[%emt 0:02:23]} Kb4 {[%emt 0:02:58]} 56. Ke5 {[%emt 0:01:06]} Kc3 {[%emt 0:00:16]} 57. Re2 {[%emt 0:00:33]} Rc1 {[%emt 0:01:23]} 58. f6 {[%emt 0:00:11]} Rxc2 {[%emt 0:00:03]} 59. Rxc2+ {[%emt 0:00:13]} Kxc2 {[%emt 0:00:01]} 60. f7 {[%emt 0:00:13]} Kb2 {[%emt 0:00:37]} 61. f8=Q {[%emt 0:00:09]} c3 {[%emt 0:00:03]} 62. Qb4+ {[%emt 0:00:12]} 1-0

[Event "Finnish Women Championship 2022"]
[Site "Helsinki"]
[Date "2022.04.19"]
[Round "5.3"]
[White "Rinne, Heini"]
[Black "Nazarova, Anastasia"]
[Result "0-1"]
[ECO "A06"]
[WhiteElo "1847"]
[BlackElo "2222"]
[Annotator "TA"]
[PlyCount "68"]
[EventDate "2022.04.15"]
[EventType "tourn"]
[EventCountry "FIN"]
[SourceTitle "playchess.com"]
[Source "ChessBase"]
[SourceQuality "1"]
[TimeControl "40/5400+30:1800+30"]

{[%evp 10,68,20,19,16,26,14,16,75,41,72,58,58,21,31,14,14,13,13,0,13,8,8,-13,7,-13,0,0,0,0,29,0,22,0,0,-252,-245,-285,-287,-279,-262,-379,-384,-383,-376,-344,-334,-478,-490,-622,-617,-612,-597,-587,-581,-808,-718,-29985,-29986,-3281,-2402]} 1. b3 {[%emt 0:00:05]} d5 {[%emt 0:00:05]} 2. Bb2 {[%emt 0:00:07]} c5 {[%emt 0:00:08]} 3. e3 {[%emt 0:00:49]} Nf6 {[%emt 0:00:04]} 4. Nf3 {[%emt 0:00:44]} Nc6 {[%emt 0:00:47]} 5. Bb5 {[%emt 0:02:13]} Bg4 {[%emt 0:01:36]} 6. h3 {[%emt 0:02:56]} Bxf3 {[%emt 0:01:18] A06: Réti Opening: 1 Nf3 d5.} 7. Bxc6+ {[%emt 0:01:36]} bxc6 {[%emt 0:00:05]} 8. Qxf3 {[%emt 0:00:20]} Qc7 {[%emt 0:01:36]} (8... e6 $11) 9. d3 {[%emt 0:20:23]} e5 {[%emt 0:15:56]} 10. Qg3 {[%emt 0:04:21]} Nd7 {[%emt 0:00:30] [#]} 11. Nd2 $146 {[%emt 0:14:39]} ({Predecessor:} 11. O-O f6 12. c4 Nb6 13. e4 Bd6 14. cxd5 cxd5 15. Nc3 O-O 16. exd5 Qb7 17. Qf3 {1-0 (53) Toledano Llinares,J (2338)-Alarcia Astiz,C (2091) Cullera 2005}) 11... g6 {[%emt 0:13:38]} 12. O-O {[%emt 0:11:22]} Bg7 {[%emt 0:06:11]} 13. e4 {[%emt 0:02:25]} O-O {[%emt 0:01:48]} 14. Qf3 {[%emt 0:16:19]} f5 {[%emt 0:02:47]} 15. Qe2 {[%emt 0:01:27]} ({Not} 15. exd5 $2 e4 16. dxe4 Bxb2 $19) 15... Rae8 {[%emt 0:02:04]} 16. c4 {[%emt 0:01:33]} Qd6 {[%emt 0:06:02]} 17. Rad1 {[%emt 0:05:21]} Nf6 {[%emt 0:06:16]} 18. Ba3 {[%emt 0:01:50]} Rf7 {[%emt 0:08:40]} 19. Nf3 {[%emt 0:01:04]} Nh5 {[%emt 0:04:30]} 20. Bc1 {[%emt 0:00:37]} Qd7 {[%emt 0:06:36]} 21. Qc2 {[%emt 0:02:58]} fxe4 {[%emt 0:11:18]} 22. Nh2 {[%emt 0:04:48][%mdl 8192] [#]} (22. dxe4 $11 {and White stays safe.} Rxf3 23. gxf3 Qxh3 24. cxd5) 22... exd3 $19 {[%emt 0:00:16]} 23. Qxd3 {[%emt 0:00:18][%cal Rc4d5]} e4 {[%emt 0:00:22]} 24. Qe2 {[%emt 0:01:30]} d4 {[%emt 0:00:28][%cal Oe4e3]} 25. Ng4 {[%emt 0:00:52]} (25. Qg4 $142) 25... Nf4 {[%emt 0:01:09]} 26. Bxf4 {[%emt 0:00:22]} Rxf4 {[%emt 0:00:05]} 27. Qd2 {[%emt 0:00:47]} Rff8 {[%emt 0:02:38]} 28. Qa5 {[%emt 0:00:34]} (28. Rfe1 $142) 28... h5 {[%emt 0:00:34]} 29. Ne3 {[%emt 0:00:27]} Qe7 {[%emt 0:00:20]} 30. Nc2 {[%emt 0:00:04]} d3 {[%emt 0:01:36]} 31. Ne3 {[%emt 0:00:14]} Bd4 {[%emt 0:00:05] aiming for ...Rf7.} 32. Qd2 {[%emt 0:01:11]} Qg5 {[%emt 0:00:21][%cal Of8f2] ...Rxf2! is the strong threat.} 33. a3 {[%emt 0:00:59] [#]} Rxf2 $3 {[%emt 0:01:52][%mdl 512]} 34. Rxf2 {[%emt 0:00:40]} (34. Qxf2 Bxe3) 34... Bxe3 {[%emt 0:00:06] Weighted Error Value: White=0.72/Black=0.11 (very precise)} 0-1

[Event "Finnish Women Championship 2022"]
[Site "Helsinki"]
[Date "2022.04.19"]
[Round "5.4"]
[White "Dannenberg, Alia"]
[Black "Sippola, Sara-Olivia"]
[Result "0-1"]
[ECO "B33"]
[WhiteElo "1896"]
[BlackElo "1531"]
[Annotator "NA RC"]
[PlyCount "76"]
[EventDate "2022.04.15"]
[EventType "tourn"]
[EventCountry "FIN"]
[SourceTitle "playchess.com"]
[Source "ChessBase"]
[SourceQuality "1"]
[TimeControl "40/5400+30:1800+30"]

1. e4 {[%emt 0:00:03]} c5 {[%emt 0:00:03]} 2. Nf3 {[%emt 0:00:05]} Nc6 {[%emt 0:00:04]} 3. d4 {[%emt 0:00:05]} cxd4 {[%emt 0:00:04]} 4. Nxd4 {[%emt 0:00:02]} Nf6 {[%emt 0:00:08]} 5. Nc3 {[%emt 0:00:06]} e5 {[%emt 0:00:05]} 6. Ndb5 {[%emt 0:00:08]} d6 {[%emt 0:00:10]} 7. Bg5 {[%emt 0:00:30]} a6 {[%emt 0:00:07]} 8. Na3 {[%emt 0:00:50]} b5 {[%emt 0:00:09]} 9. Bxf6 {[%emt 0:01:39]} gxf6 {[%emt 0:00:10]} 10. Nd5 $1 {[%emt 0:00:30]} f5 {[%emt 0:00:10]} 11. exf5 {[%emt 0:00:20]} Bxf5 {[%emt 0:00:43]} 12. c3 {[%emt 0:00:21]} Be6 {[%emt 0:07:38]} 13. Nc2 {[%emt 0:05:31]} Bg7 $1 {[%emt 0:03:27]} 14. Nce3 $11 {[%emt 0:08:57]} Rb8 {[%emt 0:02:59]} 15. Qf3 {[%emt 0:03:55]} Ne7 {[%emt 0:12:48]} 16. Nf6+ {[%emt 0:13:32]} Bxf6 {[%emt 0:00:10]} 17. Qxf6 {[%emt 0:00:02]} Ng6 {[%emt 0:00:17]} 18. Qxd8+ {[%emt 0:08:17]} Kxd8 {[%emt 0:08:57]} 19. Rd1 {[%emt 0:04:08]} Kc7 {[%emt 0:01:02]} 20. Nd5+ {[%emt 0:01:21]} Bxd5 {[%emt 0:01:58]} 21. Rxd5 {[%emt 0:00:02]} Kc6 {[%emt 0:00:56]} 22. Rd2 {[%emt 0:00:34]} d5 {[%emt 0:00:42]} 23. g3 {[%emt 0:01:08]} e4 {[%emt 0:02:18]} 24. Bh3 {[%emt 0:01:36]} (24. Be2 $11) 24... Ne5 {[%emt 0:00:30]} 25. Ke2 {[%emt 0:01:42]} Nf3 {[%emt 0:08:28]} 26. Rc2 {[%emt 0:03:03]} b4 {[%emt 0:06:57]} 27. Bg2 {[%emt 0:02:35]} bxc3 {[%emt 0:02:36]} 28. Bxf3 {[%emt 0:07:30]} Rxb2 {[%emt 0:01:36]} 29. Bxe4 {[%emt 0:08:29]} dxe4 {[%emt 0:01:09]} 30. Rhc1 {[%emt 0:02:04]} Kd5 {[%emt 0:04:27]} 31. Ke3 {[%emt 0:02:50]} Rxc2 {[%emt 0:00:24]} 32. Rxc2 {[%emt 0:00:07]} Rc8 {[%emt 0:00:07]} 33. g4 {[%emt 0:01:17]} Kc4 {[%emt 0:02:54]} 34. g5 {[%emt 0:01:52]} Rb8 {[%emt 0:01:03]} 35. Kxe4 {[%emt 0:04:23]} Re8+ {[%emt 0:02:56]} 36. Kf5 {[%emt 0:02:00]} Kd3 {[%emt 0:03:05]} 37. Rc1 {[%emt 0:00:14]} Kd2 {[%emt 0:00:09]} 38. Rb1 {[%emt 0:00:16]} c2 {[%emt 0:00:32]} 0-1

[Event "Finnish Women Championship 2022"]
[Site "Helsinki"]
[Date "2022.04.19"]
[Round "5.5"]
[White "Norlamo, Sarabella"]
[Black "Lehtinen, Helja"]
[Result "1-0"]
[ECO "E73"]
[WhiteElo "1957"]
[BlackElo "1907"]
[Annotator "TA"]
[PlyCount "99"]
[EventDate "2022.04.15"]
[EventType "tourn"]
[EventCountry "FIN"]
[SourceTitle "playchess.com"]
[Source "ChessBase"]
[SourceQuality "1"]
[TimeControl "40/5400+30:1800+30"]

{[%evp 14,99,65,60,70,62,74,68,75,50,44,-12,-2,-17,0,0,3,0,13,18,54,62,39,-31,-31,-47,-42,-60,-42,-72,-50,-75,-60,-85,-73,-110,-98,-138,-133,-124,-118,-120,-101,-105,-106,-96,-66,-149,-149,-153,-147,-145,-143,-206,-209,-189,-139,-235,-130,-117,539,541,785,785,781,776,730,725,725,718,714,651,753,718,735,735,877,896,1028,1020,964,952,1046,1041,1033,980,915,873]} 1. d4 {[%emt 0:00:04]} Nf6 {[%emt 0:00:06]} 2. c4 {[%emt 0:00:04]} g6 {[%emt 0:00:05]} 3. Nc3 {[%emt 0:00:07]} Bg7 {[%emt 0:00:05]} 4. e4 {[%emt 0:00:07]} d6 {[%emt 0:00:05]} 5. Be2 {[%emt 0:00:06]} O-O {[%emt 0:00:14]} 6. Be3 {[%emt 0:00:05]} e5 {[%emt 0:00:30]} 7. d5 {[%emt 0:00:07]} Nbd7 {[%emt 0:02:28]} 8. g4 {[%emt 0:01:52] &Bianco is more active.} Nc5 {[%emt 0:02:57] E73: King's Indian: Averbakh Variation without 6...c5.} 9. f3 {[%emt 0:00:47]} Ne8 {[%emt 0:03:43] [#]} 10. Qd2 $146 {[%emt 0:14:58]} ({Predecessor:} 10. h4 f5 11. g5 fxe4 12. fxe4 Rf4 13. Bxf4 exf4 14. Qd2 a6 15. Nf3 b5 16. Qxf4 {½-½ (89) Ganguly,S (2650)-Melkumyan,H (2633) Riadh 2017}) 10... f5 {[%emt 0:10:28] White is slightly better.} 11. gxf5 {[%emt 0:05:27]} gxf5 {[%emt 0:00:16]} 12. Bg5 {[%emt 0:09:03] Prevents Qh4+.} (12. h4 $14) 12... Nf6 $11 {[%emt 0:03:21][%cal Rf5e4]} 13. b4 {[%emt 0:03:51]} Na6 {[%emt 0:03:06]} 14. a3 {[%emt 0:00:18]} f4 {[%emt 0:07:29]} 15. Bd3 {[%emt 0:08:23]} Qe8 {[%emt 0:05:02]} 16. Qf2 {[%emt 0:05:06]} h6 {[%emt 0:08:46]} 17. Bh4 {[%emt 0:00:54]} Qh5 {[%emt 0:07:59]} 18. Bxf6 {[%emt 0:14:22]} ({Better is} 18. O-O-O $14) 18... Bxf6 $15 {[%emt 0:00:26]} 19. O-O-O {[%emt 0:00:25]} Kh7 {[%emt 0:04:06]} 20. Nge2 {[%emt 0:01:55]} Bh3 {[%emt 0:06:29] White must now prevent ...Bh4.} 21. Ng1 {[%emt 0:03:32] [#]} Bh4 $1 {[%emt 0:03:06]} 22. Qc2 {[%emt 0:07:32]} Bd7 {[%emt 0:02:57]} 23. Rd2 {[%emt 0:07:49]} Rg8 {[%emt 0:02:41]} 24. Nb1 {[%emt 0:02:07]} Raf8 {[%emt 0:07:38]} 25. Rg2 {[%emt 0:01:52]} Rxg2 {[%emt 0:02:44]} 26. Qxg2 {[%emt 0:00:03]} Rg8 {[%emt 0:00:44]} 27. Qf1 {[%emt 0:00:01]} Be7 {[%emt 0:05:42]} 28. Nd2 {[%emt 0:00:59][%cal Oh2h4]} Nb8 {[%emt 0:01:07]} 29. Qf2 {[%emt 0:04:20]} b6 {[%emt 0:00:27]} 30. Ne2 {[%emt 0:00:35] [#]} (30. Kc2 $15) 30... Bh3 $1 $17 {[%emt 0:01:06]} 31. Nc3 {[%emt 0:02:18]} Bh4 {[%emt 0:00:41]} 32. Qe2 {[%emt 0:00:11]} a6 {[%emt 0:04:01]} 33. Bc2 {[%emt 0:02:25]} (33. Kc2 $17 {was called for.}) 33... Rg2 {[%emt 0:00:40]} 34. Qd3 {[%emt 0:01:06]} Qg5 {[%emt 0:01:16]} (34... Bf2 $19 35. Nd1 Bg1) 35. Ne2 {[%emt 0:00:13]} (35. Kb2 $17) 35... Rf2 {[%emt 0:01:51]} (35... Bf2 $19 {Threatens to win with ...Be3.} 36. Kb1 Nd7) 36. Rg1 {[%emt 0:00:41] [#]} Qh5 {[%emt 0:00:50][%mdl 8192] [#]} (36... Qf6 $1 $17 {keeps the pressure on.} 37. Nd4 Nd7) 37. Nxf4 $1 $18 {[%emt 0:00:50][%mdl 512] White is clearly winning.} exf4 {[%emt 0:02:58]} (37... Rxd2 38. Nxh5) 38. e5+ $1 {[%emt 0:00:00]} Bf5 {[%emt 0:00:10]} 39. Qxf5+ {[%emt 0:00:05]} Qxf5 {[%emt 0:00:09]} 40. Bxf5+ {[%emt 0:00:02]} Kh8 {[%emt 0:00:10]} 41. exd6 {[%emt 0:10:30]} cxd6 {[%emt 0:00:38]} 42. Be6 {[%emt 0:00:50]} Rxh2 {[%emt 0:00:27]} 43. Rg8+ {[%emt 0:00:14]} Kh7 {[%emt 0:00:06]} 44. Rxb8 {[%emt 0:00:09]} Bf2 {[%emt 0:00:33]} 45. Ne4 {[%emt 0:05:48]} Be3+ {[%emt 0:01:51]} 46. Kb1 {[%emt 0:01:02]} Rh1+ {[%emt 0:05:21]} 47. Ka2 {[%emt 0:02:31] And now Bf5+ would win.} Bd4 {[%emt 0:01:25]} 48. Bf5+ {[%emt 0:02:08]} Kg7 {[%emt 0:00:16]} 49. Rb7+ {[%emt 0:00:09]} Kf8 {[%emt 0:00:37]} 50. Nxd6 {[%emt 0:00:34] Quite a comeback for White.  Weighted Error Value: White=0.25 (precise) /Black=0.40} 1-0

[Event "Finnish Women Championship 2022"]
[Site "Helsinki"]
[Date "2022.04.20"]
[Round "6.1"]
[White "Soboleva, Lidiia"]
[Black "Lehtinen, Helja"]
[Result "1/2-1/2"]
[ECO "B40"]
[WhiteElo "1068"]
[BlackElo "1907"]
[Annotator "TA"]
[PlyCount "56"]
[EventDate "2022.04.15"]
[EventType "tourn"]
[EventCountry "FIN"]
[SourceTitle "playchess.com"]
[Source "ChessBase"]
[SourceQuality "1"]
[TimeControl "40/5400+30:1800+30"]

{[%evp 11,56,0,0,4,23,0,29,0,15,-25,-14,-73,-9,-133,-118,-150,-99,-90,-97,-193,-158,-141,-86,-135,-110,-113,-112,-115,-129,-100,-57,-58,0,0,0,0,0,0,0,0,0,-27,-19,-19,-18,-52,-43]} 1. e4 {[%emt 0:00:03]} c5 {[%emt 0:00:05]} 2. Nf3 {[%emt 0:00:04]} e6 {[%emt 0:00:07]} 3. d4 {[%emt 0:00:14]} cxd4 {[%emt 0:00:07]} 4. Nxd4 {[%emt 0:00:03]} Nf6 {[%emt 0:00:09][%cal Bg8f6,Bf6d5,Bd5f4][%mdl 32]} 5. Bd3 {[%emt 0:02:17]} Nc6 {[%emt 0:00:51]} 6. Nf3 {[%emt 0:01:58]} d5 {[%emt 0:02:43]} 7. exd5 {[%emt 0:01:31] B40: Sicilian: 2...e6, Unusual lines.} Nxd5 {[%emt 0:00:32]} 8. O-O {[%emt 0:01:49]} Bd6 {[%emt 0:04:08] [#]} 9. b3 $146 {[%emt 0:08:07] White has an edge.} ({Predecessor:} 9. Nbd2 O-O 10. Ne4 Bc7 11. Bg5 f6 12. Bd2 e5 13. Bc4 Kh8 14. h3 Bf5 15. Ng3 Bg6 16. Bb3 Nde7 17. Qe2 Nd4 18. Nxd4 Qxd4 19. Be3 Qxb2 {0-1 (19) Martinez Paipa,H (1797)-Florez,S (1667) Pereira 2019}) 9... O-O {[%emt 0:03:13]} 10. Bb2 {[%emt 0:05:57] Inhibits Qf6.} Nf4 {[%emt 0:04:17]} 11. h4 {[%emt 0:04:52]} (11. Bc4 $11) 11... Be7 {[%emt 0:08:10]} (11... e5 $17) 12. g3 {[%emt 0:05:58]} (12. Be4 $11 {remains equal.}) 12... Nxd3 $17 {[%emt 0:00:14]} 13. cxd3 {[%emt 0:01:18]} Nb4 {[%emt 0:06:40]} (13... b6 $142 14. Qe2 Bb7) 14. d4 {[%emt 0:00:46]} b6 {[%emt 0:02:38] Hoping for ...Ba6.} 15. Nc3 {[%emt 0:02:22]} (15. a3 $17 {was called for.} Nd5 16. Nbd2) 15... Bb7 {[%emt 0:01:34]} 16. Ne5 {[%emt 0:03:02]} Nd5 {[%emt 0:09:37]} (16... Rc8 $142 {[%cal Oe7h4]} 17. Qg4 Nd5) 17. Rc1 {[%emt 0:06:12]} (17. Qf3 $142) 17... Nxc3 {[%emt 0:02:03]} 18. Rxc3 {[%emt 0:00:39]} Qd5 {[%emt 0:00:35][%csl Gb7][%cal Rd5h1] [#] Prevents Nc6.} 19. Qf3 {[%emt 0:01:39] Against Qh1+} Qxf3 {[%emt 0:05:07]} 20. Nxf3 {[%emt 0:00:46][%cal Oc3c7]} Bxf3 {[%emt 0:03:03]} (20... Bb4 {is more complex.} 21. Rc4 Ba5 22. Ne5 Ba6) 21. Rxf3 {[%emt 0:00:08]} Rfd8 {[%emt 0:00:45]} (21... Rac8 $15) 22. Rc1 $11 {[%emt 0:01:58]} Rd7 {[%emt 0:04:03]} 23. Rfc3 {[%emt 0:01:06]} Rad8 {[%emt 0:00:15]} 24. Rc7 {[%emt 0:01:58]} f6 {[%emt 0:02:25]} 25. R1c6 {[%emt 0:02:24]} Kf7 {[%emt 0:00:39]} 26. Rc8 {[%emt 0:02:58]} Rxc8 {[%emt 0:01:46]} 27. Rxc8 {[%emt 0:00:07]} Bd6 {[%emt 0:01:40]} 28. f4 {[%emt 0:02:33]} Rc7 {[%emt 0:02:41] Whites escaped into a draw.  Weighted Error Value: White=0.33/Black=0.19 (very precise)} 1/2-1/2